[Event "Int SVK-ch GM 2020"]
[Site "Drienica"]
[Date "2020.08.14"]
[Round "8.4"]
[White "Mrva, Martin"]
[Black "Pechac, Jergus"]
[Result "0-1"]
[ECO "B10"]
[WhiteElo "2386"]
[BlackElo "2498"]
[Annotator "ChessBase"]
[PlyCount "60"]
[EventDate "2020.08.07"]
[EventType "tourn"]
[EventCountry "SVK"]
[SourceTitle "playchess.com"]
[Source "ChessBase"]
[SourceQuality "1"]
[TimeControl "40/5400+30:1800+30"]

1. c4 c6 2. e4 d5 3. exd5 cxd5 4. cxd5 Nf6 5. Nc3 g6 {[%emt 0:04:39]} 6. Nf3 {[%emt 0:00:24]} Bg7 {[%emt 0:05:45]} 7. Bc4 {[%emt 0:00:08]} O-O {[%emt 0:00:40]} 8. O-O {[%emt 0:00:08]} b6 {[%emt 0:30:02]} 9. Re1 {[%emt 0:02:59]} Bb7 {[%emt 0:03:11]} 10. d4 {[%emt 0:11:44]} Nxd5 {[%emt 0:01:12]} 11. Bg5 {[%emt 0:12:08]} Nxc3 {[%emt 0:09:50]} 12. bxc3 {[%emt 0:00:07]} Qc8 13. Bb3 {[%emt 0:15:03]} e6 {[%emt 0:01:15]} 14. Ne5 {[%emt 0:00:10]} Nd7 {[%emt 0:01:04]} 15. Nxf7 {[%emt 0:17:35]} Rxf7 {[%emt 0:00:44]} 16. Bxe6 {[%emt 0:00:09]} Qf8 {[%emt 0:01:00]} 17. Bxf7+ {[%emt 0:00:15]} Qxf7 {[%emt 0:00:16]} 18. Re7 {[%emt 0:00:06]} Qf5 {[%emt 0:01:12]} 19. h4 {[%emt 0:08:52]} Bf8 {[%emt 0:03:16]} 20. Re3 {[%emt 0:02:25]} h6 {[%emt 0:03:41]} 21. Be7 {[%emt 0:09:25]} Re8 {[%emt 0:00:11]} 22. Qe2 {[%emt 0:00:31]} Rxe7 {[%emt 0:00:15]} 23. Rxe7 {[%emt 0:00:13]} Bxe7 {[%emt 0:00:03]} 24. Qxe7 {[%emt 0:00:08]} Qg4 {[%emt 0:00:05]} 25. Kf1 {[%emt 0:07:29]} Qxg2+ {[%emt 0:00:08]} 26. Ke1 {[%emt 0:02:03]} Qg1+ {[%emt 0:00:26]} 27. Ke2 {[%emt 0:00:07]} Ba6+ {[%emt 0:05:06]} 28. Kf3 {[%emt 0:05:42]} Qxa1 {[%emt 0:00:06]} 29. Qxd7 {[%emt 0:01:41]} Qxc3+ {[%emt 0:00:06]} 30. Kf4 {[%emt 0:00:10]} Qc8 {[%emt 0:01:09]} 0-1

[Event "Int SVK-ch GM 2020"]
[Site "Drienica"]
[Date "2020.08.15"]
[Round "9.3"]
[White "Jurcik, Marian"]
[Black "Mrva, Martin"]
[Result "1-0"]
[ECO "E76"]
[WhiteElo "2441"]
[BlackElo "2386"]
[Annotator "ChessBase"]
[PlyCount "57"]
[EventDate "2020.08.07"]
[EventType "tourn"]
[EventCountry "SVK"]
[SourceTitle "playchess.com"]
[Source "ChessBase"]
[SourceQuality "1"]
[TimeControl "40/5400+30:1800+30"]

1. d4 {[%emt 0:00:38]} Nf6 {[%emt 0:00:00]} 2. c4 {[%emt 0:01:01]} d6 {[%emt 0:00:00]} 3. Nc3 {[%emt 0:02:50]} g6 {[%emt 0:00:26]} 4. e4 {[%emt 0:00:35]} Bg7 {[%emt 0:00:04]} 5. f4 {[%emt 0:02:08]} c5 {[%emt 0:22:24]} 6. dxc5 {[%emt 0:03:40]} Qa5 {[%emt 0:00:23]} 7. Bd3 {[%emt 0:00:32]} Nfd7 {[%emt 0:10:53]} 8. Nge2 {[%emt 0:04:35]} Nxc5 {[%emt 0:02:31]} 9. O-O {[%emt 0:03:44]} Nc6 {[%emt 0:05:32]} 10. h3 {[%emt 0:35:57]} Nxd3 {[%emt 0:12:52]} 11. Qxd3 {[%emt 0:00:12]} Nb4 {[%emt 0:00:10]} 12. Qg3 {[%emt 0:14:20]} Nc2 {[%emt 0:06:04]} 13. Rb1 {[%emt 0:00:07]} Qc5+ {[%emt 0:00:10]} 14. Kh1 {[%emt 0:06:10]} Qxc4 {[%emt 0:00:16]} 15. Bd2 {[%emt 0:01:19]} Nb4 {[%emt 0:00:38]} 16. a3 {[%emt 0:06:05]} Nc6 {[%emt 0:10:55]} 17. b3 {[%emt 0:00:48]} Qe6 {[%emt 0:09:38]} 18. f5 {[%emt 0:04:10]} Qd7 {[%emt 0:03:29]} 19. Nd5 {[%emt 0:00:16]} Qd8 {[%emt 0:01:39]} 20. Qh4 {[%emt 0:04:38]} f6 {[%emt 0:04:52]} 21. Nef4 {[%emt 0:00:51]} Kf7 {[%emt 0:00:13]} 22. Bc3 {[%emt 0:01:33]} Bd7 {[%emt 0:00:41]} 23. Qg4 {[%emt 0:03:21]} Kg8 {[%emt 0:04:30]} 24. Rbd1 {[%emt 0:01:06]} Rc8 {[%emt 0:00:52]} 25. Qg3 {[%emt 0:00:46]} g5 {[%emt 0:00:43]} 26. Ne6 {[%emt 0:00:27]} Qe8 {[%emt 0:00:09]} 27. Nxg7 {[%emt 0:00:20]} Kxg7 {[%emt 0:01:30]} 28. Qxg5+ {[%emt 0:00:03]} Kf7 {[%emt 0:00:31]} 29. Nxf6 {[%emt 0:00:26]} 1-0

[Event "Int SVK-ch GM 2020"]
[Site "Drienica"]
[Date "2020.08.15"]
[Round "9.5"]
[White "Druska, Juraj"]
[Black "Mazur, Stefan"]
[Result "1-0"]
[ECO "E70"]
[WhiteElo "2515"]
[BlackElo "2449"]
[Annotator "ChessBase"]
[PlyCount "29"]
[EventDate "2020.08.07"]
[EventType "tourn"]
[EventCountry "SVK"]
[SourceTitle "playchess.com"]
[Source "ChessBase"]
[SourceQuality "1"]
[TimeControl "40/5400+30:1800+30"]

1. c4 {[%emt 0:00:15]} Nf6 {[%emt 0:00:04]} 2. d4 {[%emt 0:00:14]} g6 {[%emt 0:00:41]} 3. Nc3 {[%emt 0:00:11]} Bg7 {[%emt 0:00:05]} 4. e4 {[%emt 0:00:05]} O-O {[%emt 0:00:07]} 5. h3 {[%emt 0:00:43]} c6 {[%emt 0:02:32]} 6. Bd3 {[%emt 0:30:22]} d6 {[%emt 0:02:18]} 7. Nf3 {[%emt 0:00:31]} e5 {[%emt 0:00:30]} 8. O-O {[%emt 0:02:45]} Na6 {[%emt 0:01:42]} 9. Be3 {[%emt 0:00:59]} exd4 {[%emt 0:02:15]} 10. Bxd4 {[%emt 0:00:48]} Re8 {[%emt 0:02:50]} 11. Re1 {[%emt 0:00:11]} Nc5 {[%emt 0:03:41]} 12. Bc2 {[%emt 0:06:17]} Be6 {[%emt 0:04:33]} 13. b3 {[%emt 0:00:35]} Qa5 {[%emt 0:01:13]} 14. Qd2 {[%emt 0:03:36]} Rad8 {[%emt 0:01:22]} 15. Bxf6 {[%emt 0:01:23]} 1-0